fUST/lending_fUST_20251222
["ID","MTS","AMOUNT","RATE_DAILY","PERIOD"]
[399476503,1766405443783,-500.0,0.00010901,2]
[399476504,1766405443792,-500.0,0.00010901,2]
[399476505,1766405443801,-179.83384816,0.00010901,2]
[399476506,1766405443811,-500.0,0.00010901,2]
[399476507,1766405443820,-500.0,0.00010901,2]
[399476508,1766405443829,-500.0,0.00010901,2]
[399476509,1766405443848,-416.0,0.00010902,2]
[399476510,1766405443860,-2237.94024915,0.0001358,2]
[399476511,1766405443871,-48653.88,0.0001358,2]
[399476512,1766405443882,-6464.17948194,0.0001358,2]
[399476513,1766405443896,-39879.74825913,0.0001358,2]
[399476514,1766405443935,-8012.06256,0.0001358,2]
[399476521,1766405446806,-277.312261,0.0001358,2]
[399476578,1766406632551,-550.0,9.315e-05,2]
[399476581,1766406632564,-200.0,9.315e-05,2]
[399476583,1766406632576,-261.18843164,9.346e-05,2]
[399476585,1766406632590,-160.8382796,9.378e-05,2]
[399476588,1766406632603,-160.0,0.00010137,2]
[399476590,1766406632615,-161.779,0.00010158,2]
[399476592,1766406632627,-300.0,0.00010356,2]
[399476594,1766406632637,-150.02188061,0.00010357,2]
[399476596,1766406632649,-500.0,0.00010357,2]
[399476598,1766406632660,-500.0,0.00010357,2]
[399476601,1766406632673,-500.0,0.00010357,2]
[399476603,1766406632685,-500.0,0.00010357,2]
[399476605,1766406632698,-359.69782981,0.00010357,2]
[399476607,1766406632710,-196.06546845,0.00010364,2]
[399476610,1766406632723,-1041.66666667,0.00010382,2]
[399476612,1766406632737,-600.0,0.00010673,2]
[399476615,1766406632750,-603.782,0.0001126,2]
[399476617,1766406632762,-2160.0,0.0001126,2]
[399476619,1766406632773,-633.0,0.0001126,2]
[399476621,1766406632783,-416.0,0.0001126,2]
[399476623,1766406632793,-308.20234934,0.00011346,2]
[399476625,1766406632805,-720.0,0.0001174,2]
[399476627,1766406632818,-500.0,0.00012356,2]
[399476630,1766406632832,-500.0,0.00012819,2]
[399476632,1766406632843,-3403.83859821,0.000129,2]
[399476634,1766406632853,-3403.83859821,0.000129,2]
[399476636,1766406632865,-864.0,0.00012914,2]
[399476638,1766406632877,-196.7334264,0.00013151,2]
[399476640,1766406632889,-192.8756158,0.00013151,2]
[399476641,1766406632900,-192.8756158,0.00013151,2]
[399476642,1766406632911,-2476.28697506,0.00013184,2]
[399476643,1766406632921,-500.0,0.00013273,2]
[399476644,1766406632933,-500.0,0.00013273,2]
[399476647,1766406632955,-503.79240785,0.00013273,2]
[399476649,1766406632966,-500.0,0.00013273,2]
[399476651,1766406632977,-500.0,0.00013273,2]
[399476652,1766406632988,-500.0,0.00013273,2]
[399476653,1766406632999,-504.90442328,0.00013273,2]
[399476654,1766406633011,-500.0,0.00013273,2]
[399476655,1766406633025,-167.43576746,0.00013273,2]
[399476656,1766406633037,-327.16507652,0.00013308,2]
[399476657,1766406633048,-355.21626703,0.00013346,2]
[399476658,1766406633060,-1675.0013443,0.00013459,2]
[399476659,1766406633072,-473.66230185,0.00013513,2]
[399476660,1766406633084,-60083.69267127,0.0001358,2]
[399476661,1766406633096,-475.0,0.0001358,2]
[399476662,1766406633108,-475.0,0.0001358,2]
[399476663,1766406633119,-475.0,0.0001358,2]
[399476664,1766406633130,-475.0,0.0001358,2]
[399476665,1766406633141,-475.0,0.0001358,2]
[399476666,1766406633152,-475.0,0.0001358,2]
[399476667,1766406633163,-475.0,0.0001358,2]
[399476668,1766406633174,-475.0,0.0001358,2]
[399476669,1766406633185,-475.0,0.0001358,2]
[399476670,1766406633197,-475.0,0.0001358,2]
[399476671,1766406633209,-120.70080018,0.0001358,2]
[399476672,1766406633224,-354.29919982,0.0001358,2]
[399476673,1766406633235,-475.0,0.0001358,2]
[399476674,1766406633246,-112.18973598,0.0001358,2]
[399476677,1766406638597,-362.81026402,0.0001358,2]
[399476678,1766406638606,-475.0,0.0001358,2]
[399476679,1766406638615,-475.0,0.0001358,2]
[399476680,1766406638624,-40.33403338,0.000136,2]
[399476681,1766406638635,-137.64952739,0.000136,2]
[399476682,1766406638644,-155.0,0.000136,2]
[399476683,1766406638654,-300.0,0.00013673,2]
[399476685,1766406638663,-500.0,0.00013698,2]
[399476687,1766406638673,-282.1648527,0.00013698,2]
[399476689,1766406638684,-217.8351473,0.00013698,2]
[399476691,1766406638694,-500.0,0.00013698,2]
[399476693,1766406638704,-513.98744324,0.00013698,2]
[399476695,1766406638714,-500.0,0.00013698,2]
[399476697,1766406638723,-364.50760965,0.00013698,2]
[399476698,1766406638731,-500.0,0.00013698,2]
[399476699,1766406638740,-500.0,0.00013698,2]
[399476700,1766406638749,-307.68367935,0.00013698,2]
[399476701,1766406638758,-1000.0,0.00013699,2]
[399476702,1766406638769,-8462.44340636,0.00013699,2]
[399476703,1766406638780,-4061.22764134,0.00013699,2]
[399476704,1766406638790,-1500.0,0.00013699,2]
[399476705,1766406638799,-772.358013,0.00013699,2]
[399476706,1766406638808,-461.96845983,0.00013699,2]
[399476707,1766406638816,-495.60112554,0.00013699,2]
[399476726,1766406644299,-5.22329561,0.00013699,2]
[399476727,1766406644310,-500.80788565,0.00013699,2]
[399476728,1766406644320,-135.31334344,0.00013699,2]
[399476730,1766406644369,-267.00722017,0.00013699,2]
[399476732,1766406644386,-98.44668526,0.00013699,2]
[399476733,1766406644396,-251.63761194,0.00013699,2]
[399476734,1766406644409,-248.36238806,0.00013699,2]
[399476735,1766406644420,-443.8999701,0.00013699,2]
[399476736,1766406644430,-233.87782514,0.00013699,2]
[399476737,1766406644440,-500.0,0.00013699,2]
[399476738,1766406644451,-500.82671445,0.00013699,2]
[399476739,1766406644461,-500.3159488,0.00013699,2]
[399476740,1766406644472,-500.92105205,0.00013699,2]
[399476741,1766406644482,-160.09021058,0.00013699,2]
[399476742,1766406644492,-158.22661989,0.00013699,2]
[399476743,1766406644502,-158.22661987,0.00013699,2]
[399476744,1766406644512,-530.10111083,0.00013699,2]
[399476745,1766406644522,-188.23162214,0.00013699,2]
[399476746,1766406644532,-260.02708098,0.00013699,2]
[399476747,1766406644542,-500.66859863,0.00013699,2]
[399476748,1766406644552,-158.22661987,0.00013699,2]
[399476749,1766406644562,-158.39683354,0.00013699,2]
[399476750,1766406644572,-500.31286843,0.00013699,2]
[399476751,1766406644582,-160.04458425,0.00013699,2]
[399476752,1766406644591,-500.0,0.00013699,2]
[399476753,1766406644601,-158.02654781,0.00013699,2]
[399476754,1766406644612,-500.0,0.00013699,2]
[399476755,1766406644621,-160.02692276,0.00013699,2]
[399476756,1766406644631,-500.0,0.00013699,2]
[399476757,1766406644641,-500.0,0.00013699,2]
[399476758,1766406644651,-500.0,0.00013699,2]
[399476759,1766406644660,-500.0,0.00013699,2]
[399476760,1766406644673,-539.12703891,0.00013699,2]
[399476762,1766406644684,-500.0,0.00013699,2]
[399476764,1766406644695,-305.35868692,0.00013699,2]
[399476765,1766406644705,-500.0,0.00013699,2]
[399476766,1766406644715,-298.25017815,0.00013699,2]
[399476768,1766406644724,-158.02654781,0.00013699,2]
[399476770,1766406644734,-158.22662041,0.00013699,2]
[399476771,1766406644743,-500.0,0.00013699,2]
[399476772,1766406644753,-500.0,0.00013699,2]
[399476773,1766406644763,-500.0,0.00013699,2]
[399476774,1766406644772,-500.0,0.00013699,2]
[399476776,1766406644782,-500.0,0.00013699,2]
[399476777,1766406644791,-500.0,0.00013699,2]
[399476778,1766406644801,-500.55735551,0.00013699,2]
[399476779,1766406644811,-500.75234739,0.00013699,2]
[399476780,1766406644823,-500.0,0.00013699,2]
[399476781,1766406644833,-500.0,0.00013699,2]
[399476782,1766406644844,-646.09588285,0.00013699,2]
[399476783,1766406644853,-501.48254311,0.00013699,2]
[399476784,1766406644863,-500.0,0.00013699,2]
[399476785,1766406645126,-500.0,0.00013699,2]
[399476786,1766406645138,-339.77668814,0.00013699,2]
[399476787,1766406645147,-159.26736691,0.00013699,2]
[399476789,1766406645156,-500.26895181,0.00013699,2]
[399476791,1766406645166,-500.0,0.00013699,2]
[399476792,1766406645176,-859.0,0.00013773,2]
[399476793,1766406645185,-859.0,0.00013778,2]
[399476794,1766406645195,-500.0,0.000138,2]
[399476795,1766406645204,-500.0,0.00013821,2]
[399476796,1766406645213,-439.6469143,0.00013821,2]
[399476797,1766406645222,-1043.94430021,0.00013821,2]
[399476798,1766406645233,-1000.0,0.00013821,2]
[399476799,1766406645242,-1000.0,0.00013821,2]
[399476800,1766406645252,-1000.0,0.00013821,2]
[399476801,1766406645262,-3403.83859821,0.00013825,2]
[399476802,1766406645271,-859.0,0.0001385,2]
[399476803,1766406645280,-859.0,0.00013894,2]
[399476804,1766406645290,-859.0,0.00013925,2]
[399476805,1766406645298,-859.0,0.00013995,2]
[399476806,1766406645308,-5000.0,0.00014,2]
[399476807,1766406645317,-152.0,0.00014,2]
[399476808,1766406645327,-152.0,0.00014,2]
[399476809,1766406645337,-152.0,0.00014,2]
[399476810,1766406645346,-152.0,0.00014,2]
[399476811,1766406645355,-152.0,0.00014,2]
[399476812,1766406645365,-152.0,0.00014,2]
[399476813,1766406645374,-152.0,0.00014,2]
[399476814,1766406645384,-152.0,0.00014,2]
[399476815,1766406645394,-152.0,0.00014,2]
[399476816,1766406645404,-152.0,0.00014,2]
[399476817,1766406645415,-152.0,0.00014,2]
[399476818,1766406645425,-152.0,0.00014,2]
[399476819,1766406645435,-152.0,0.00014,2]
[399476820,1766406645444,-152.0,0.00014,2]
[399476821,1766406645454,-152.0,0.00014,2]
[399476822,1766406645463,-152.0,0.00014,2]
[399476823,1766406645472,-102.90430112,0.00014,2]
[399476825,1766406645984,-49.09569888,0.00014,2]
[399476826,1766406645993,-152.0,0.00014,2]
[399476827,1766406646003,-152.0,0.00014,2]
[399476828,1766406646012,-255.91491374,0.00014,2]
[399476829,1766406646022,-92.61766136,0.00014025,2]
[399476830,1766406646054,-766.38233864,0.00014025,2]
[399476831,1766406646064,-859.0,0.00014039,2]
[399476832,1766406646074,-859.0,0.00014098,2]
[399476833,1766406646084,-182.77339512,0.000142,2]
[399476834,1766406646094,-5000.0,0.000142,2]
[399476835,1766406646104,-859.0,0.00014204,2]
[399476836,1766406646115,-1000.0,0.00014206,2]
[399476837,1766406646124,-663.33036278,0.00014221,2]
[399476838,1766406646133,-727.79971676,0.00014247,2]
[399476839,1766406646142,-630.19410176,0.00014247,2]
[399476840,1766406646152,-1005.05165139,0.00014247,2]
[399476841,1766406646161,-1000.0,0.00014247,2]
[399476842,1766406646170,-500.0,0.00014247,2]
[399476843,1766406646179,-1000.0,0.00014247,2]
[399476844,1766406646189,-501.4414122,0.00014247,2]
[399476845,1766406646198,-504.02807913,0.00014247,2]
[399476846,1766406646207,-500.0,0.00014247,2]
[399476847,1766406646216,-1000.0,0.00014247,2]
[399476848,1766406646226,-349.56954964,0.00014247,2]
[399476849,1766406646235,-859.0,0.00014253,2]
[399476850,1766406646245,-414.0,0.0001426,2]
[399476851,1766406646255,-503.46838453,0.000143,2]
[399476852,1766406646265,-500.0,0.000143,2]
[399476853,1766406646275,-500.0,0.000143,2]
[399476854,1766406646285,-520.55172029,0.000143,2]
[399476855,1766406646294,-500.0,0.000143,2]
[399476856,1766406646304,-500.0,0.000143,2]
[399476857,1766406646315,-500.0,0.000143,2]
[399476858,1766406646324,-12.7080378,0.000143,2]
[399476859,1766406646607,-487.2919622,0.000143,2]
[399476860,1766406646617,-500.0,0.000143,2]
[399476861,1766406646627,-500.0,0.000143,2]
[399476862,1766406646636,-500.0,0.000143,2]
[399476863,1766406646646,-500.0,0.000143,2]
[399476864,1766406646655,-500.0,0.000143,2]
[399476865,1766406646665,-500.0,0.000143,2]
[399476866,1766406646675,-500.0,0.000143,2]
[399476867,1766406646684,-500.0,0.000143,2]
[399476868,1766406646694,-501.88346789,0.000143,5]
[399476869,1766406646704,-10.82456991,0.000143,5]
[399476938,1766407831819,-1038.83719804,9.807e-05,2]
[399476940,1766407831829,-439.05841238,9.807e-05,2]
[399476942,1766407831841,-1168.91284753,9.807e-05,2]
[399477078,1766407838071,-230.82088276,9.807e-05,2]
[399477079,1766407838080,-557.0,9.807e-05,2]
[399477080,1766407838090,-242.69629068,9.92e-05,2]
[399477081,1766407838100,-161.779,0.00010059,2]
[399477082,1766407838109,-61.94350742,0.00010161,2]
[399477102,1766407840072,-238.05649258,0.00010161,2]
[399477103,1766407840083,-300.0,0.00010161,2]
[399477104,1766407840094,-199.6781003,0.00010161,2]
[399477125,1766407843112,-100.3218997,0.00010161,2]
[399477127,1766407843122,-300.0,0.00010161,2]
[399477129,1766407843131,-1200.0,0.00010161,2]
[399477131,1766407843141,-500.0,0.00010161,2]
[399477132,1766407843150,-500.0,0.00010161,2]
[399477133,1766407843160,-262.18864776,0.00010161,2]
[399477134,1766407843169,-500.0,0.00010161,2]
[399477135,1766407843179,-500.0,0.00010161,2]
[399477136,1766407843189,-500.0,0.00010161,2]
[399477137,1766407843198,-500.0,0.00010161,2]
[399477138,1766407843207,-500.0,0.00010161,2]
[399477139,1766407843216,-638.20218619,0.00010161,2]
[399477140,1766407843226,-500.0,0.00010161,2]
[399477141,1766407843235,-500.0,0.00010161,2]
[399477142,1766407843245,-500.0,0.00010161,2]
[399477143,1766407843255,-500.0,0.00010161,2]
[399477144,1766407843264,-500.0,0.00010161,2]
[399477145,1766407843273,-500.0,0.00010161,2]
[399477146,1766407843283,-400.0,0.00010161,2]
[399477147,1766407843292,-500.0,0.00010161,2]
[399477148,1766407843302,-500.0,0.00010161,2]
[399477149,1766407843311,-500.0,0.00010161,2]
[399477150,1766407843321,-500.0,0.00010161,2]
[399477151,1766407843331,-500.0,0.00010161,2]
[399477152,1766407843340,-500.0,0.00010161,2]
[399477153,1766407843349,-150.13400009,0.00010162,2]
[399477154,1766407843361,-4406.517,0.00010163,2]
[399477155,1766407843371,-500.0,0.00010261,2]
[399477156,1766407843380,-500.0,0.00010261,2]
[399477157,1766407843389,-500.0,0.00010261,2]
[399477158,1766407843399,-500.0,0.00010261,2]
[399477159,1766407843408,-500.0,0.00010261,2]
[399477160,1766407843418,-500.0,0.00010261,2]
[399477161,1766407843428,-500.0,0.00010261,2]
[399477162,1766407843439,-500.0,0.00010261,2]
[399477163,1766407843448,-500.0,0.00010261,2]
[399477164,1766407843458,-500.0,0.00010261,2]
[399477165,1766407843467,-500.0,0.00010261,2]
[399477166,1766407843476,-500.0,0.00010261,2]
[399477167,1766407843486,-500.0,0.00010261,2]
[399477168,1766407843495,-500.0,0.00010261,2]
[399477169,1766407843505,-500.0,0.00010261,2]
[399477170,1766407843514,-279.39821333,0.00010261,2]
[399477171,1766407843523,-1041.66666667,0.00010335,2]
[399477172,1766407843533,-2155.0,0.0001177,2]
[399477173,1766407843543,-150.0,0.0001177,2]
[399477174,1766407843552,-286.381623,0.0001192,2]
[399477175,1766407843561,-500.0,0.00012656,2]
[399477176,1766407843571,-310.8649346,0.00013273,2]
[399477177,1766407843580,-500.0,0.00013273,2]
[399477178,1766407843592,-500.0,0.00013273,2]
[399477179,1766407843602,-500.0,0.00013698,2]
[399477180,1766407843612,-184.10582561,0.00013698,2]
[399477181,1766407843622,-1000.0,0.00013699,2]
[399477182,1766407843631,-12523.6710477,0.00013699,2]
[399477183,1766407843641,-500.0,0.00013699,2]
[399477184,1766407843651,-500.0,0.00013699,2]
[399477185,1766407843661,-500.0,0.00013699,2]
[399477186,1766407843670,-500.0,0.00013699,2]
[399477187,1766407843680,-502.14928563,0.00013699,2]
[399477188,1766407843690,-500.0,0.00013699,2]
[399477189,1766407843699,-898.7014194,0.00013821,2]
[399477190,1766407843709,-1000.0,0.00013821,2]
[399477191,1766407843719,-330.06695533,0.0001392,2]
[399477192,1766407843728,-192.8756158,0.00013978,2]
[399477193,1766407843737,-218.11005101,0.00014014,2]
[399477194,1766407843747,-2493.68683326,0.00014134,2]
[399477195,1766407843756,-295.97672547,0.00014247,2]
[399477196,1766407843765,-489.80793235,0.00014247,2]
[399477197,1766407843774,-1000.0,0.00014247,2]
[399477198,1766407843784,-1000.0,0.00014247,2]
[399477199,1766407843794,-336.38157563,0.000143,2]
[399477200,1766407843803,-489.17543009,0.000143,2]
[399477201,1766407843812,-336.32344212,0.00014368,2]
[399477202,1766407843821,-508.900574,0.00014795,2]
[399477203,1766407843831,-156.24133703,0.000149,2]
[399477204,1766407843840,-532.32579567,0.00015,2]
[399477205,1766407843850,-1440.0,0.00015,5]
[399477206,1766407843859,-500.0,0.00015,2]
[399477207,1766407843869,-20315.0,0.00015,2]
[399477208,1766407843878,-514.0,0.00015,2]
[399477209,1766407843888,-287.0,0.00015,2]
[399477210,1766407843897,-172.279937,0.00015068,2]
[399477211,1766407843906,-506.63253509,0.00015267,30]
[399477212,1766407843916,-1400.0,0.000153,14]
[399477213,1766407843927,-162.51151685,0.000153,2]
[399477214,1766407843937,-312.21887939,0.000153,2]
[399477215,1766407843946,-156.10943968,0.000153,2]
[399477216,1766407843956,-151.91674776,0.000153,2]
[399477217,1766407843965,-201.28672764,0.000153,2]
[399477218,1766407843975,-258.21557077,0.000153,2]
[399477219,1766407843984,-274.99836299,0.000153,2]
[399477220,1766407843994,-333.33333333,0.000153,2]
[399477221,1766407844004,-192.789214,0.000153,2]
[399477222,1766407844013,-775.85463518,0.000153,2]
[399477223,1766407844023,-278.87953192,0.000153,2]
[399477224,1766407844032,-366.42310577,0.000153,2]
[399477225,1766407844041,-479.0944419,0.000153,2]
[399477226,1766407844050,-258.6182117,0.000153,2]
[399477227,1766407844060,-159.69814727,0.000153,2]
[399477228,1766407844069,-500.0,0.00015396,2]
[399477229,1766407844078,-775.85463518,0.00015631,5]
[399477230,1766407844088,-479.0944419,0.00015631,5]
[399477231,1766407844097,-38000.0,0.0001589,3]
[399477232,1766407844106,-31332.26538482,0.0001589,3]
[399477233,1766407844116,-935.67841884,0.000159,2]
[399477234,1766407844125,-935.67841876,0.00015913,2]
[399477235,1766407844136,-373.75228765,0.0001592,2]
[399477236,1766407844146,-333.33333333,0.0001596,9]
[399477237,1766407844156,-775.85463518,0.00015961,9]
[399477238,1766407844167,-479.0944419,0.00015961,9]
[399477239,1766407844176,-935.67841876,0.00015966,2]
[399477240,1766407844186,-366.42310577,0.00015985,9]
[399477241,1766407844195,-100000.0,0.0001599,2]
[399477242,1766407844204,-151.0,0.0001599,2]
[399477243,1766407844213,-151.0,0.0001599,2]
[399477244,1766407844223,-3000.0,0.00016,2]
[399477245,1766407844232,-3000.0,0.0001601,2]
[399477246,1766407844242,-935.67841876,0.00016019,2]
[399477247,1766407844251,-3000.0,0.0001602,2]
[399477248,1766407844262,-4652.915871,0.0001603,2]
[399477249,1766407844271,-935.67841876,0.00016072,2]
[399477250,1766407844280,-4000.0,0.000161,2]
[399477251,1766407844290,-6000.0,0.000161,2]
[399477252,1766407844299,-935.67841876,0.00016126,2]
[399477253,1766407844308,-935.67841876,0.00016179,2]
[399477254,1766407844317,-935.67841876,0.00016232,2]
[399477255,1766407844327,-935.67841876,0.00016285,2]
[399477256,1766407844336,-775.85463518,0.00016292,13]
[399477257,1766407844345,-479.0944419,0.00016292,13]
[399477258,1766407844355,-375.7775887,0.00016301,2]
[399477259,1766407844368,-112109.5880729,0.00016319,4]
[399477260,1766407844381,-3631.37454,0.00016319,4]
[399477281,1766408296922,10000.0,0.00014,30]
[399477282,1766408304770,10000.0,0.00014,30]
[399477283,1766408312619,10000.0,0.00014,30]
[399477284,1766408318631,10000.0,0.00014,30]
[399477285,1766408327731,2472.24,0.00014,30]
[399477286,1766408356346,10000.0,0.00014,30]
[399477287,1766408365629,10000.0,0.00014,30]
[399477288,1766408372596,6984.26611003,0.00014,30]
[399477289,1766408372618,3015.73388997,0.00014,30]
[399477290,1766408379749,10000.0,0.00014,30]
[399477291,1766408390894,2984.56,0.00014,30]
[399477292,1766408414795,10000.0,0.00014,30]
[399477293,1766408421403,10000.0,0.00014,30]
[399477294,1766408427809,10000.0,0.00014,30]
[399477295,1766408438835,4475.21,0.00014,30]
[399477322,1766409032051,-1765.19319324,9.19e-05,2]
[399477407,1766409038043,-23574.12217136,9.19e-05,2]
[399477410,1766409038054,-150.26601016,9.496e-05,2]
[399477411,1766409038063,-161.779,9.96e-05,2]
[399477413,1766409038073,-560.0,9.96e-05,2]
[399477415,1766409038082,-269.68193369,9.973e-05,2]
[399477417,1766409038091,-4406.517,0.00010057,2]
[399477419,1766409038101,-300.0,0.00010154,2]
[399477421,1766409038110,-300.0,0.00010154,2]
[399477423,1766409038119,-1200.0,0.00010154,2]
[399477425,1766409038129,-500.0,0.00010155,2]
[399477427,1766409038138,-500.0,0.00010155,2]
[399477429,1766409038148,-500.0,0.00010155,2]
[399477431,1766409038157,-262.18864776,0.00010155,2]
[399477433,1766409038167,-400.0,0.00010155,2]
[399477435,1766409038177,-500.0,0.00010155,2]
[399477437,1766409038186,-500.0,0.00010155,2]
[399477439,1766409038196,-500.0,0.00010155,2]
[399477441,1766409038205,-500.0,0.00010155,2]
[399477443,1766409038216,-500.0,0.00010155,2]
[399477445,1766409038225,-500.0,0.00010155,2]
[399477447,1766409038235,-500.0,0.00010155,2]
[399477449,1766409038244,-500.0,0.00010155,2]
[399477451,1766409038253,-638.20218619,0.00010155,2]
[399477452,1766409038264,-500.0,0.00010155,2]
[399477454,1766409038275,-500.0,0.00010155,2]
[399477457,1766409038288,-500.0,0.00010155,2]
[399477459,1766409038298,-500.0,0.00010155,2]
[399477461,1766409038308,-500.0,0.00010155,2]
[399477463,1766409038318,-500.0,0.00010155,2]
[399477465,1766409038327,-500.0,0.00010155,2]
[399477467,1766409038336,-500.0,0.00010155,2]
[399477469,1766409038346,-500.0,0.00010155,2]
[399477471,1766409038355,-500.0,0.00010155,2]
[399477472,1766409038364,-500.0,0.00010155,2]
[399477474,1766409038374,-500.0,0.00010155,2]
[399477476,1766409038383,-500.0,0.00010155,2]
[399477478,1766409038393,-500.0,0.00010155,2]
[399477480,1766409038403,-279.39821333,0.00010155,2]
[399477483,1766409038415,-500.0,0.00010155,2]
[399477485,1766409038424,-500.0,0.00010155,2]
[399477487,1766409038433,-500.0,0.00010155,2]
[399477489,1766409038443,-500.0,0.00010155,2]
[399477491,1766409038453,-500.0,0.00010155,2]
[399477493,1766409038463,-500.0,0.00010155,2]
[399477495,1766409038473,-500.0,0.00010155,2]
[399477497,1766409038483,-500.0,0.00010155,2]
[399477498,1766409038491,-250.0,0.00010155,2]
[399477500,1766409038500,-500.0,0.00010155,2]
[399477502,1766409038510,-18172.16977624,0.00010156,2]
[399477504,1766409038521,-5017.71451295,0.00010293,2]
[399477506,1766409038531,-1041.66666667,0.00010397,2]
[399477508,1766409038540,-2417.6698531,0.00010647,2]
[399477510,1766409038550,-500.0,0.00010959,2]
[399477512,1766409038559,-268.18698227,0.00010959,2]
[399477514,1766409038569,-2417.6698531,0.00011022,2]
[399477516,1766409038578,-420.0,0.00011168,2]
[399477518,1766409038587,-480.0,0.00011169,2]
[399477520,1766409038597,-2417.6698531,0.00011397,2]
[399477521,1766409038606,-2417.6698531,0.00011772,2]
[399477523,1766409038615,-2160.0,0.0001197,2]
[399477525,1766409038625,-318.22468175,0.00011973,2]
[399477527,1766409038635,-2417.6698531,0.00012147,2]
[399477529,1766409038644,-461.0,0.00012282,2]
[399477532,1766409038654,-2417.6698531,0.00012522,2]
[399477534,1766409038667,-2417.6698531,0.00012898,2]
[399477536,1766409038677,-251.1481925,0.0001316,2]
[399477537,1766409038687,-310.8649346,0.00013273,2]
[399477539,1766409038699,-500.0,0.00013273,2]
[399477541,1766409038708,-500.0,0.00013273,2]
[399477543,1766409038718,-2417.6698531,0.00013273,2]
[399477545,1766409038727,-20000.0,0.00013516,2]
[399477547,1766409038737,-151.0,0.00013516,2]
[399477549,1766409038746,-279.31672856,0.00013516,2]
[399477550,1766409038757,-201.93286099,0.00013516,2]
[399477552,1766409038772,-553.64373807,0.00013516,2]
[399477554,1766409038781,-151.0,0.00013516,2]
[399477556,1766409038791,-500.0,0.00013516,2]
[399477558,1766409038800,-500.0,0.00013516,2]
[399477560,1766409038810,-500.0,0.00013516,2]
[399477562,1766409038819,-500.0,0.00013516,2]
[399477564,1766409038828,-500.0,0.00013516,2]
[399477566,1766409038838,-500.0,0.00013516,2]
[399477568,1766409038847,-500.0,0.00013516,2]
[399477570,1766409038857,-500.0,0.00013516,2]
[399477572,1766409038867,-500.0,0.00013516,2]
[399477574,1766409038878,-500.0,0.00013516,2]
[399477576,1766409038888,-500.0,0.00013516,2]
[399477577,1766409038897,-500.0,0.00013516,2]
[399477579,1766409038906,-500.0,0.00013516,2]
[399477581,1766409038916,-500.0,0.00013516,2]
[399477583,1766409038925,-500.0,0.00013516,2]
[399477585,1766409038935,-500.0,0.00013516,2]
[399477587,1766409038944,-500.0,0.00013516,2]
[399477589,1766409038953,-500.0,0.00013516,2]
[399477591,1766409038963,-500.0,0.00013516,2]
[399477593,1766409038973,-500.0,0.00013516,2]
[399477595,1766409038982,-500.0,0.00013516,2]
[399477597,1766409038991,-500.0,0.00013516,2]
[399477599,1766409039001,-2417.6698531,0.00013648,2]
[399477601,1766409039010,-500.0,0.00013698,2]
[399477603,1766409039020,-184.10582561,0.00013698,2]
[399477605,1766409039029,-386.179006,0.00013699,2]
[399477607,1766409039039,-500.0,0.00013699,2]
[399477609,1766409039048,-500.0,0.00013699,2]
[399477610,1766409039057,-158.22658143,0.00013699,2]
[399477612,1766409039067,-158.22661987,0.00013699,2]
[399477614,1766409039079,-500.0,0.00013699,2]
[399477616,1766409039088,-502.14928563,0.00013699,2]
[399477618,1766409039098,-500.0,0.00013699,2]
[399477620,1766409039107,-500.0,0.00013699,2]